bitfinex/quotes_ETHUSD_20250328
["timestamp","ask_amount","ask_price","bid_price","bid_amount"]
[1743185494080,5.30243,1886.0,1885.8,14.5]
[1743185494287,5.302,1886.1,1885.9,5.152]
[1743185494695,10.60416,1886.1,1885.9,5.152]
[1743185494995,5.30194,1886.1,1885.9,5.152]
[1743185495393,5.30222,1886.0,1885.9,5.152]
[1743185495571,5.30194,1886.1,1885.9,5.152]
[1743185496914,5.3025,1885.9,1885.2,6.10427]
[1743185497111,5.3025,1885.9,1885.4,5.152]
[1743185497112,5.30335,1885.6,1885.4,5.152]
[1743185497399,9.12365596,1885.5,1885.4,5.152]
[1743185497567,5.30363,1885.5,1885.4,5.152]
[1743185499885,5.30447,1885.2,1885.1,14.5]
[1743185500114,5.30447,1885.2,1885.1,19.653]
[1743185501206,5.30421,1885.3,1885.1,19.653]
[1743185501427,10.60861,1885.3,1885.1,19.653]
[1743185501891,5.30421,1885.3,1885.1,19.653]
[1743185502093,10.60858,1885.3,1885.1,19.653]
[1743185502303,5.30447,1885.2,1885.1,19.653]
[1743185503529,5.30447,1885.2,1885.1,14.5]
[1743185503723,5.30475,1885.1,1885.0,5.154]
[1743185504126,5.30475,1885.1,1885.0,19.654]
[1743185505003,10.60905,1885.2,1885.0,19.654]
[1743185505323,5.30447,1885.2,1885.0,19.654]
[1743185505531,5.30475,1885.1,1885.0,19.654]
[1743185506445,5.30411,1885.4,1885.0,19.654]
[1743185506744,10.60872,1885.3,1885.0,19.654]
[1743185507226,5.3045,1885.2,1885.0,19.654]
[1743185508104,5.30428,1885.3,1885.0,19.654]
[1743185508308,5.30449,1885.2,1885.0,19.654]
[1743185509712,5.30341,1885.6,1885.2,5.30428]
[1743185509935,5.30341,1885.6,1885.2,10.60864]
[1743185510123,5.30341,1885.6,1885.2,5.30428]
[1743185510454,5.30341,1885.6,1885.3,19.80417]
[1743185510633,5.30341,1885.6,1885.4,5.155]
[1743185510813,5.30333,1885.7,1885.4,5.155]
[1743185511164,10.60576,1885.8,1885.5,0.8157]
[1743185511326,5.30281,1885.8,1885.5,6.11932]
[1743185511528,5.30281,1885.8,1885.6,14.5]
[1743185511873,5.30197,1886.1,1885.7,5.30287]
[1743185512159,5.30226,1886.0,1885.8,5.155]
[1743185512816,5.30226,1886.0,1885.8,19.655]
[1743185514441,5.3025,1885.9,1885.8,19.655]
[1743185515259,5.3025,1885.9,1885.8,5.155]
[1743185515940,5.30095,1886.5,1885.8,5.155]
[1743185515941,5.30132,1886.4,1886.0,6.12012]
[1743185516659,5.3012,1886.4,1886.0,6.12012]
[1743185517224,5.30082,1886.5,1886.0,0.818]
[1743185517428,14.42150596,1886.6,1886.2,5.30155]
[1743185517656,3.0,1886.5,1886.2,10.45655]
[1743185517852,8.30084,1886.5,1886.2,10.45655]
[1743185518028,13.60185,1886.5,1886.2,5.155]
[1743185518230,8.30084,1886.5,1886.2,5.155]
[1743185518449,5.30084,1886.5,1886.2,5.155]
[1743185518650,10.60189,1886.5,1886.2,5.155]
[1743185519024,5.30084,1886.5,1886.2,5.155]
[1743185519236,5.30084,1886.5,1886.2,10.45661]
[1743185519458,9.90134596,1886.8,1886.4,5.30101]
[1743185519831,15.20150596,1886.8,1886.4,5.30101]
[1743185520234,5.30026,1886.7,1886.4,5.30101]
[1743185520856,5.30026,1886.7,1886.3,0.7724]
[1743185521060,10.60071,1886.7,1886.3,6.07366]
[1743185521358,3.82002596,1886.6,1886.3,6.07366]
[1743185522561,5.30026,1886.7,1886.3,11.37486]
[1743185522761,5.30026,1886.7,1886.3,7.726586]
[1743185522964,10.60077,1886.7,1886.3,6.0736]
[1743185523644,5.30026,1886.7,1886.3,6.0736]
[1743185523827,10.60072,1886.7,1886.3,6.0736]
[1743185524028,5.30096,1886.5,1886.2,10.45665]
[1743185524285,10.60196,1886.5,1886.2,5.155]
[1743185524453,5.30094,1886.5,1886.3,5.153]
[1743185524653,10.60198,1886.5,1886.3,5.153]
[1743185524964,5.3011,1886.4,1886.3,5.153]
[1743185525563,5.3011,1886.4,1885.9,6.09937]
[1743185525564,5.30176,1886.2,1885.9,6.09937]
[1743185525768,5.30176,1886.2,1886.1,5.153]
[1743185527458,5.30143,1886.3,1886.1,5.153]
[1743185527661,10.60298,1886.3,1886.1,5.153]
[1743185527974,5.30143,1886.3,1886.1,5.153]
[1743185528385,5.30166,1886.2,1886.1,5.153]
[1743185528966,5.30143,1886.3,1886.1,5.153]
[1743185529285,10.60298,1886.3,1886.1,5.153]
[1743185529790,5.30143,1886.3,1886.1,5.153]
[1743185530575,10.60299,1886.3,1886.1,5.153]
[1743185530778,5.30143,1886.3,1886.1,5.153]
[1743185531473,10.603,1886.3,1886.1,5.153]
[1743185532390,5.30101,1886.5,1886.1,10.45486]
[1743185532689,5.3,1886.8,1886.4,5.30109]
[1743185532864,5.3,1886.8,1886.5,5.153]
[1743185533495,5.68928359,1886.9,1886.5,5.153]
[1743185533688,5.68928359,1886.9,1886.5,15.75449]
[1743185533689,5.2999,1886.9,1886.5,15.75449]
[1743185533896,5.2999,1886.9,1886.5,10.45369]
[1743185534095,5.2999,1886.9,1886.5,10.45361]
[1743185534681,5.2999,1886.9,1886.5,15.75424]
[1743185534993,5.30002,1886.8,1886.5,10.45361]
[1743185535698,5.29987,1886.9,1886.5,15.75433]
[1743185535882,5.29987,1886.9,1886.5,10.45361]
[1743185536076,5.29987,1886.9,1886.6,5.3004]
[1743185536279,6.11895,1887.1,1886.7,5.30007]
[1743185536478,6.11895,1887.1,1886.8,5.29988]
[1743185536479,5.29915,1887.1,1886.8,5.29988]
[1743185536674,10.59741,1887.3,1887.0,0.8192]
[1743185536884,5.2983,1887.4,1887.0,0.8192]
[1743185537178,5.2983,1887.4,1887.1,5.29903]
[1743185537387,5.29831,1887.4,1887.0,6.1186]
[1743185537687,5.29831,1887.4,1887.0,11.4179]
[1743185537995,5.29809,1887.5,1887.1,10.59789]
[1743185538294,10.59628,1887.5,1887.1,5.29892]
[1743185538462,5.29809,1887.5,1887.1,10.5979]
[1743185538667,10.99133631,1887.6,1887.2,5.29866]
[1743185538964,6.11818,1887.7,1887.3,15.74886]
[1743185539168,6.11818,1887.7,1887.3,16.56806]
[1743185539367,11.41583,1887.7,1887.3,11.26962]
[1743185539767,5.29777,1887.6,1887.3,11.26962]
[1743185540694,0.8207,1887.7,1887.3,5.9712]
[1743185540898,0.05,1887.9,1887.6,5.29752]
[1743185541098,0.05,1887.9,1887.5,6.10073]
[1743185541404,5.34691,1887.9,1887.7,5.151]
[1743185541575,0.05,1887.9,1887.7,5.151]
[1743185542087,5.34706,1887.9,1887.7,5.151]
[1743185542702,10.64416,1887.9,1887.7,5.151]
[1743185542915,5.34706,1887.9,1887.7,5.151]
[1743185543104,0.05,1887.9,1887.7,5.151]
[1743185543611,0.05,1887.9,1887.8,5.29717]
[1743185544505,0.05,1887.9,1887.7,10.44829]
[1743185545401,0.05,1887.9,1887.7,11.09232046]
[1743185545703,0.05,1887.9,1887.7,10.44829]
[1743185547505,0.05,1887.9,1887.7,5.151]
[1743185547686,0.05,1887.9,1887.7,5.15]
[1743185548006,10.64416,1887.9,1887.7,5.15]
[1743185548406,5.29717,1887.8,1887.7,5.15]
[1743185548608,6.11517,1887.8,1887.7,5.15]
[1743185548772,5.29783,1887.6,1887.5,5.15]
[1743185548979,5.2977,1887.7,1887.5,5.15]
[1743185549378,11.41258,1887.8,1887.5,5.15]
[1743185549604,5.29718,1887.8,1887.5,6.194828]
[1743185550326,5.29763,1887.7,1887.5,5.15]
[1743185552578,10.5953,1887.7,1887.5,5.15]
[1743185553007,5.29763,1887.7,1887.5,5.15]
[1743185554728,5.29761,1887.7,1887.5,5.15]
[1743185554927,10.59523,1887.7,1887.5,5.15]
[1743185555488,5.29761,1887.7,1887.5,5.15]
[1743185555818,5.29773,1887.6,1887.5,5.15]
[1743185556317,5.29773,1887.6,1887.1,5.29893]
[1743185556318,11.3534,1887.5,1887.4,5.149]
[1743185556624,11.3534,1887.5,1887.3,5.149]
[1743185556994,5.29829,1887.4,1887.3,5.149]
[1743185558201,5.29887,1887.2,1887.1,5.149]
[1743185558495,10.59794,1887.2,1887.0,5.149]
[1743185559025,5.29955,1887.0,1886.8,28.8367]
[1743185559228,5.29955,1887.0,1886.9,5.149]
[1743185559802,6.09377,1887.1,1886.9,5.149]
[1743185560132,5.29941,1887.0,1886.9,5.149]
[1743185560427,5.29917,1887.1,1886.9,5.149]
[1743185560632,5.29941,1887.0,1886.9,5.149]
[1743185560926,5.29895,1887.2,1886.9,12.60426906]
[1743185561132,5.29898,1887.2,1886.9,8.07079906]
[1743185561502,5.29897,1887.2,1886.9,8.07079906]
[1743185562222,10.59802,1887.2,1886.9,8.07079906]
[1743185562412,5.29897,1887.2,1886.9,8.07079906]
[1743185562612,5.29897,1887.2,1886.9,13.37046906]
[1743185562806,5.29897,1887.2,1887.0,1.33704691]
[1743185563001,10.59736,1887.3,1887.0,1.33704691]
[1743185563202,5.29886,1887.2,1886.9,13.37030906]
[1743185563398,5.29886,1887.2,1886.9,8.07079906]
[1743185563827,5.29886,1887.2,1886.9,13.37047906]
[1743185565054,5.29886,1887.2,1886.9,8.07079906]
[1743185565205,5.29886,1887.2,1886.9,5.9152]
[1743185565558,9.11888596,1887.2,1886.9,5.9152]
[1743185565772,5.29982,1886.9,1886.8,5.149]
[1743185566063,5.30002,1886.8,1886.7,5.149]
[1743185566427,5.29982,1886.9,1886.7,5.149]
[1743185566627,5.29997,1886.8,1886.7,5.149]
[1743185566880,9.11999596,1886.8,1886.7,5.149]
[1743185569462,5.29951,1887.0,1886.7,11.25977]
[1743185569659,9.11918596,1887.1,1886.7,16.55983]
[1743185569982,9.11918596,1887.1,1886.7,11.25966]
[1743185570187,5.29944,1887.0,1886.7,11.25966]
[1743185570604,14.41842596,1887.1,1886.7,16.55975]
[1743185570793,9.11918596,1887.1,1886.7,11.25966]
[1743185571099,9.11918596,1887.1,1886.8,5.29989]
[1743185571291,5.29891,1887.2,1886.9,14.5]
[1743185571481,5.29891,1887.2,1886.9,19.79967]
[1743185571795,5.29891,1887.2,1886.9,14.5]
[1743185572215,5.29891,1887.2,1886.9,19.79969]
[1743185572407,12.90034596,1887.3,1887.0,6.09039]
[1743185572408,12.11864596,1887.3,1887.0,6.09039]
[1743185572707,5.29862,1887.3,1887.0,6.09039]
[1743185572908,14.41741596,1887.3,1887.0,0.791]
[1743185573061,14.41741596,1887.3,1887.1,5.15]
[1743185574416,14.41746596,1887.3,1887.1,5.15]
[1743185575304,14.41739596,1887.3,1887.1,5.15]
[1743185575482,9.11864596,1887.3,1887.1,5.15]
[1743185575882,5.29885,1887.2,1887.1,5.15]
[1743185577880,9.11864596,1887.3,1887.1,5.15]
[1743185578419,5.29885,1887.2,1887.1,5.15]
[1743185579318,4.85406904,1887.2,1887.1,5.15]
[1743185580282,0.7647,1887.2,1886.6,1.84923395]
[1743185580484,5.29999,1886.8,1886.7,5.149]
[1743185580681,10.59916,1887.0,1886.7,5.149]
[1743185580881,5.29972,1886.9,1886.7,19.649]
[1743185581298,5.29997,1886.8,1886.7,5.149]
[1743185581495,14.41963596,1886.9,1886.7,5.149]
[1743185582226,14.41963596,1886.9,1886.6,20.418]
[1743185582381,5.30011,1886.8,1886.6,20.418]
[1743185583015,9.11974596,1886.9,1886.6,20.418]
[1743185583514,9.12027596,1886.7,1886.6,19.649]
[1743185583691,9.12027596,1886.7,1886.6,14.5]
[1743185583892,9.12027596,1886.7,1886.6,19.649]
[1743185584093,15.18004596,1886.7,1886.6,5.149]
[1743185584408,9.12027596,1886.7,1886.6,5.149]
[1743185584801,5.30001,1886.8,1886.6,5.149]
[1743185585130,5.29926,1887.1,1886.7,5.30015]
[1743185585336,10.59865,1887.1,1886.7,5.30015]
[1743185585522,5.29926,1887.1,1886.8,14.5]
[1743185585923,5.29926,1887.1,1886.8,19.7999]
[1743185586123,5.29926,1887.1,1886.8,14.5]
[1743185586330,5.29969,1886.9,1886.8,14.5]
[1743185587434,5.29969,1886.9,1886.6,11.79369]
[1743185587842,9.11944596,1887.0,1886.6,17.09406]
[1743185588039,9.11944596,1887.0,1886.7,14.5]
[1743185588730,9.11944596,1887.0,1886.6,17.09398]
[1743185588932,9.11944596,1887.0,1886.7,1.709398]
[1743185589312,5.29942,1887.0,1886.7,1.709398]
[1743185589645,10.59906,1887.0,1886.7,1.709398]
[1743185589943,5.30025,1886.7,1886.4,6.10523]
[1743185590244,5.30008,1886.8,1886.5,5.149]
[1743185590413,5.30008,1886.8,1886.5,10.44981]
[1743185590610,14.41963596,1886.9,1886.5,10.44968]
[1743185590813,9.11976596,1886.9,1886.6,1.044968]
[1743185591344,5.30025,1886.7,1886.5,5.149]
[1743185592244,5.30017,1886.8,1886.5,5.149]
[1743185593245,5.30026,1886.7,1886.5,5.149]
[1743185593818,5.30026,1886.7,1886.6,14.5]
[1743185594448,5.30017,1886.8,1886.6,14.5]
[1743185594746,5.30014,1886.8,1886.6,14.5]
[1743185595331,5.30014,1886.8,1886.6,16.4649]
[1743185595515,10.6003,1886.8,1886.6,16.4649]
[1743185595717,5.30014,1886.8,1886.6,16.4649]
[1743185597248,8.29887,1887.2,1886.8,0.7867]
[1743185597416,5.29887,1887.2,1886.9,10.44864]
[1743185597618,6.07328,1887.3,1887.0,1.044864]
[1743185598157,5.29889,1887.2,1887.0,1.044864]
[1743185598318,5.29858,1887.3,1887.0,1.044864]
[1743185599062,9.11831596,1887.4,1887.0,6.344144]
[1743185599362,5.29863,1887.3,1887.0,1.044864]
[1743185599576,5.29886,1887.2,1887.0,1.044864]
[1743185599957,5.29863,1887.3,1887.0,1.044864]
[1743185600344,10.59739,1887.3,1887.0,1.044864]
[1743185600566,5.29902,1887.2,1887.0,1.044864]
[1743185600976,10.59747,1887.3,1887.0,1.044864]
[1743185601177,9.11909596,1887.2,1886.9,5.149]
[1743185601683,14.41820596,1887.2,1886.9,5.149]
[1743185602371,9.11909596,1887.2,1886.9,5.149]
[1743185602577,5.2986,1887.3,1886.9,10.44842]
[1743185602737,9.11832596,1887.4,1887.0,5.29925]
[1743185603072,14.41682596,1887.4,1887.0,6.344075]
[1743185603271,14.41682596,1887.4,1887.0,20.844075]
[1743185603579,5.2983,1887.4,1887.0,11.643315]
[1743185603876,5.2983,1887.4,1887.0,26.143315]
[1743185604075,5.2983,1887.4,1887.1,5.29911]
[1743185604380,5.2983,1887.4,1887.1,7.9134275]
[1743185604674,5.2983,1887.4,1887.1,8.6899275]
[1743185605534,5.2983,1887.4,1887.1,6.07561]
[1743185605933,5.2983,1887.4,1887.2,14.5]
[1743185606165,10.59681,1887.4,1887.2,14.5]
[1743185606471,5.2983,1887.4,1887.1,0.7765]
[1743185606775,5.2983,1887.4,1887.1,6.07558]
[1743185606975,5.2983,1887.4,1887.1,21.8175445]
[1743185607486,5.2983,1887.4,1887.1,7.3175445]
[1743185607970,9.11818596,1887.5,1887.1,6.5409145]
[1743185608201,5.29832,1887.4,1887.1,6.5409145]
[1743185609695,5.29832,1887.4,1887.0,7.137835]
[1743185609696,3.82002596,1887.3,1887.0,7.137835]
[1743185610153,9.11870596,1887.3,1887.0,7.137835]
[1743185610590,3.82002596,1887.3,1887.0,12.437095]
[1743185611166,5.29888,1887.2,1886.9,25.74946]
[1743185611381,5.29888,1887.2,1886.9,11.24946]
[1743185611679,9.11883596,1887.3,1887.0,5.2994]
[1743185613289,3.82002596,1887.3,1886.9,0.8008]
[1743185613494,10.59803,1887.2,1887.0,5.148]
[1743185614177,10.59803,1887.2,1886.8,10.59968]
[1743185614494,5.29901,1887.2,1886.9,5.148]
[1743185614701,5.29901,1887.2,1886.9,10.44766]
[1743185615202,9.11859596,1887.3,1886.9,10.44746]
[1743185615498,11.39156,1887.4,1887.0,6.12546]
[1743185615660,5.29861,1887.3,1887.0,6.12546]
[1743185615855,9.11863596,1887.3,1887.0,6.12546]
[1743185618503,14.41739596,1887.3,1887.0,6.12546]
[1743185618794,14.41741596,1887.3,1887.0,0.8262]
[1743185619288,9.11863596,1887.3,1887.0,0.8262]
[1743185619509,9.11863596,1887.3,1887.0,6.12561]
[1743185619792,9.11863596,1887.3,1887.0,6.12547]
[1743185620201,14.41739596,1887.3,1887.0,6.12547]
[1743185620601,9.11863596,1887.3,1887.0,6.12547]
[1743185621380,5.29885,1887.2,1887.0,0.8262]
[1743185621603,5.29885,1887.2,1886.9,5.148]
[1743185621755,5.29941,1887.0,1886.8,0.7506]
[1743185621990,10.59897,1887.0,1886.6,8.016]
[1743185622192,9.11986596,1886.9,1886.7,5.147]
[1743185622443,9.11986596,1886.9,1886.8,5.147]
[1743185622635,5.29984,1886.9,1886.8,5.147]
[1743185622788,5.30006,1886.8,1886.5,5.30075]
[1743185623138,9.12028596,1886.7,1886.6,5.147]
[1743185625208,5.30026,1886.7,1886.6,5.147]
[1743185626639,9.12028596,1886.7,1886.6,5.147]
[1743185628154,9.12028596,1886.7,1886.4,28.045]
[1743185628155,3.82002596,1886.7,1886.4,28.045]
[1743185628450,5.30145,1886.3,1886.0,6.08864]
[1743185628613,5.30145,1886.3,1886.1,5.148]
[1743185629210,5.30145,1886.3,1885.8,6.11329]
[1743185629211,5.30185,1886.2,1885.8,6.11329]
[1743185629394,5.30185,1886.2,1885.9,10.4505]
[1743185630640,5.30185,1886.2,1886.0,5.148]
[1743185631240,10.60375,1886.2,1886.0,5.148]
[1743185631611,5.30194,1886.1,1886.0,5.148]
[1743185636312,5.30228,1886.0,1885.8,0.8106]
[1743185636517,5.30228,1886.0,1885.9,5.148]
[1743185636717,9.12230596,1886.0,1885.9,5.148]
[1743185637031,5.30257,1885.9,1885.7,28.045]
[1743185637230,9.12259596,1885.9,1885.8,5.149]
[1743185637806,5.30257,1885.9,1885.8,5.149]
[1743185641808,9.12259596,1885.9,1885.8,5.149]
[1743185642023,5.30327,1885.7,1885.4,0.8063]
[1743185642354,0.7586,1886.0,1885.2,0.8063]
[1743185642355,5.30395,1885.4,1885.2,0.8063]
[1743185642511,5.30395,1885.4,1885.3,5.149]
[1743185643058,5.3038,1885.5,1885.3,5.149]
[1743185643358,9.12393596,1885.4,1885.2,0.8063]
[1743185643528,5.30461,1885.2,1885.0,0.8063]
[1743185643724,5.30461,1885.2,1885.1,5.149]
[1743185644120,5.30419,1885.3,1885.1,5.149]
[1743185644955,10.60858,1885.3,1885.1,5.149]
[1743185645136,10.60853,1885.3,1885.1,5.149]
[1743185645331,5.30419,1885.3,1885.1,5.149]
[1743185645561,10.60856,1885.3,1885.1,5.149]
[1743185645780,5.30419,1885.3,1885.1,5.149]
[1743185645973,10.60856,1885.3,1885.1,5.149]
[1743185646174,5.30419,1885.3,1885.1,5.149]
[1743185647946,0.7885,1885.8,1885.3,5.30419]
[1743185648152,5.30331,1885.7,1885.3,5.30419]
[1743185648345,10.60664,1885.7,1885.3,5.30419]
[1743185648545,4.60852596,1885.8,1885.2,6.13257]
[1743185648546,5.30337,1885.6,1885.2,6.13257]
[1743185648859,5.30378,1885.5,1885.1,11.57959]
[1743185649062,9.12441596,1885.3,1885.1,5.149]
[1743185649263,5.30447,1885.2,1885.1,5.149]
[1743185649857,5.30439,1885.3,1885.1,5.149]
[1743185650396,5.30436,1885.3,1885.1,5.149]
[1743185650891,10.60874,1885.3,1885.1,5.149]
[1743185651497,5.30447,1885.2,1885.1,5.149]
[1743185651649,5.30447,1885.2,1885.1,5.15]
[1743185651843,5.30447,1885.2,1884.8,11.40952]
[1743185652069,14.42988596,1885.1,1884.9,5.15]
[1743185652251,10.60986,1885.1,1884.9,5.15]
[1743185652567,5.30542,1884.9,1884.7,28.054]
[1743185652767,5.30542,1884.9,1884.8,5.15]
[1743185653150,10.61095,1884.9,1884.8,5.15]
[1743185653383,10.61095,1884.9,1884.6,0.7896]
[1743185653553,5.30542,1884.9,1884.7,5.15]
[1743185653753,10.61091,1884.9,1884.7,5.15]
[1743185654282,5.30542,1884.9,1884.7,5.15]
[1743185654979,10.61101,1884.9,1884.7,5.15]
[1743185655188,5.30542,1884.9,1884.7,5.15]
[1743185657186,9.12509596,1885.0,1884.2,0.7911]
[1743185657187,9.92532596,1884.8,1884.2,0.7911]
[1743185657386,5.30662,1884.5,1884.3,5.15]
[1743185657758,5.30672,1884.4,1884.1,5.35748]
[1743185657958,5.30672,1884.4,1884.2,5.15]
[1743185658462,5.30701,1884.3,1884.2,5.15]
[1743185658766,5.30672,1884.4,1884.2,5.15]
[1743185658962,5.30701,1884.3,1884.2,5.15]
[1743185659384,5.30729,1884.2,1884.1,0.05]
[1743185659588,5.30729,1884.2,1884.1,5.201]
[1743185659788,10.6142,1884.3,1884.1,5.201]
[1743185659993,10.61421,1884.3,1884.1,5.201]
[1743185660171,5.30729,1884.2,1884.1,5.201]
[1743185661390,5.30701,1884.3,1884.1,5.201]
[1743185661691,10.6142,1884.3,1884.1,5.201]
[1743185662195,10.61414,1884.3,1884.1,5.201]
[1743185662392,0.7562,1884.5,1884.2,5.30704]
[1743185662585,6.1157,1884.7,1884.3,5.30687]
[1743185662779,5.30622,1884.6,1884.3,5.30687]
[1743185663094,5.306,1884.7,1884.3,10.61371]
[1743185663389,5.30632,1884.6,1884.2,6.08975]
[1743185663591,10.61269,1884.6,1884.2,6.08975]
[1743185663974,14.43271596,1884.6,1884.3,0.10090359]
[1743185664694,5.30657,1884.5,1884.3,0.10090359]
[1743185664896,5.30672,1884.4,1884.3,0.10090359]
[1743185665063,5.30672,1884.4,1884.3,5.25190359]
[1743185665266,5.30672,1884.4,1884.3,5.151]
[1743185665499,5.30672,1884.4,1884.3,5.26105893]
[1743185666401,5.30624,1884.6,1884.3,5.26105893]
[1743185667390,5.30624,1884.6,1884.3,11.39634893]
[1743185668492,17.43196596,1884.7,1884.3,11.39617893]
[1743185669007,12.12591596,1884.7,1884.4,5.3067]
[1743185669369,12.12591596,1884.7,1884.5,0.11005893]
[1743185669602,5.30616,1884.6,1884.5,0.11005893]
[1743185669797,5.30616,1884.6,1884.3,5.9793]
[1743185669999,10.61255,1884.6,1884.4,0.11005893]
[1743185670173,10.61254,1884.6,1884.4,0.11005893]
[1743185670698,5.30644,1884.5,1884.4,5.26205893]
[1743185670876,9.12646596,1884.5,1884.4,5.26205893]
[1743185671281,5.30644,1884.5,1884.4,5.26205893]
[1743185672783,9.12646596,1884.5,1884.4,5.26205893]
[1743185672990,9.89716596,1884.5,1884.4,5.26205893]
[1743185674009,6.07714,1884.5,1884.4,5.26205893]
[1743185674380,6.07714,1884.5,1884.4,0.11005893]
[1743185674584,6.07714,1884.5,1884.3,5.152]
[1743185674907,9.89716596,1884.5,1884.4,0.11005893]
[1743185675315,5.30672,1884.4,1884.3,5.152]
[1743185676216,6.07714,1884.5,1884.3,5.152]
[1743185676414,10.61255,1884.6,1884.3,5.152]
[1743185676718,5.30654,1884.5,1884.3,5.152]
[1743185677097,5.30672,1884.4,1884.3,5.152]
[1743185677619,14.43319596,1884.5,1884.3,5.152]
[1743185677798,10.61317,1884.5,1884.3,5.152]
[1743185678113,10.61314,1884.5,1884.3,5.152]
[1743185678288,5.30672,1884.4,1884.3,5.152]
[1743185679217,5.30672,1884.4,1884.3,5.26212218]
[1743185679522,6.08042,1884.4,1884.3,5.26212218]
[1743185679693,6.08042,1884.4,1884.3,0.11012218]
[1743185679895,9.90044596,1884.4,1884.3,0.11012218]
[1743185680096,5.30718,1884.3,1884.2,5.151]
[1743185680284,5.30718,1884.3,1884.2,5.26112218]
[1743185682408,9.12720596,1884.3,1884.2,0.11012218]
[1743185683720,5.30718,1884.3,1884.2,0.11012218]
[1743185684311,6.08044,1884.4,1884.2,0.11012218]
[1743185685000,5.30674,1884.4,1884.2,0.11012218]
[1743185685207,5.30701,1884.3,1884.2,0.11012218]
[1743185687330,9.12703596,1884.3,1884.2,0.11012218]
[1743185687637,5.30701,1884.3,1884.2,0.11012218]
[1743185688627,4.87639302,1884.3,1884.2,0.11012218]
[1743185689231,10.61365,1884.4,1884.2,0.11012218]
[1743185689423,10.61363,1884.4,1884.2,0.11012218]
[1743185689597,5.30701,1884.3,1884.2,0.11012218]
[1743185689799,10.61366,1884.4,1884.2,0.11012218]
[1743185690735,5.30657,1884.5,1884.2,0.11012218]
[1743185690898,7.30784927,1884.8,1884.4,5.30664]
[1743185690899,5.70433358,1884.8,1884.4,5.30664]
[1743185691098,11.01015358,1884.8,1884.5,5.7941877]
[1743185691399,5.70433358,1884.8,1884.5,5.7941877]
[1743185691595,5.70433358,1884.8,1884.5,6.5466877]
[1743185691832,5.30579,1884.8,1884.5,11.8531177]
[1743185692030,10.61086,1884.9,1884.5,11.8531177]
[1743185692332,5.30564,1884.8,1884.5,11.8531177]
[1743185692528,10.61086,1884.9,1884.6,1.18531177]
[1743185692826,9.94036596,1884.8,1884.7,0.11132291]
[1743185692995,5.30599,1884.7,1884.5,5.151]
[1743185693729,10.61213,1884.7,1884.5,5.151]
[1743185693932,5.30616,1884.6,1884.5,5.151]
[1743185694232,5.30599,1884.7,1884.5,5.26105918]
[1743185695724,5.3057,1884.8,1884.5,5.26105918]
[1743185695905,10.61149,1884.8,1884.5,5.26105918]
[1743185696103,5.30592,1884.7,1884.5,5.26105918]
[1743185696502,5.3057,1884.8,1884.5,5.26105918]
[1743185696705,5.3057,1884.8,1884.6,0.8016]
[1743185697217,5.3057,1884.8,1884.7,0.11005918]
[1743185697525,5.3057,1884.8,1884.5,5.151]
[1743185697526,5.3059,1884.7,1884.5,5.151]
[1743185698519,5.3057,1884.8,1884.5,5.151]
[1743185699146,10.61148,1884.8,1884.5,5.151]
[1743185699345,5.30532,1884.9,1884.6,0.7823]
[1743185699516,10.61087,1884.9,1884.6,0.7823]
[1743185700050,5.30563,1884.8,1884.6,0.7823]
[1743185700211,10.61084,1884.9,1884.6,0.7823]
[1743185700550,5.30532,1884.9,1884.6,2.0188451]
[1743185701042,10.61081,1884.9,1884.6,2.0188451]
[1743185701333,5.30532,1884.9,1884.6,2.0188451]
[1743185701537,10.61083,1884.9,1884.6,2.0188451]
[1743185702235,5.30532,1884.9,1884.6,2.0188451]
[1743185702738,5.30532,1884.9,1884.6,7.3249951]
[1743185702941,10.61085,1884.9,1884.6,2.0188451]
[1743185703118,5.30532,1884.9,1884.6,2.0188451]
[1743185703942,5.30532,1884.9,1884.6,7.3248851]
[1743185704439,8.7013236,1885.0,1884.6,7.3248851]
[1743185704736,14.0065736,1885.0,1884.6,7.3248751]
[1743185704943,14.0065136,1885.0,1884.6,7.3248751]
[1743185705126,17.82653956,1885.0,1884.6,7.3248751]
[1743185705308,8.7013236,1885.0,1884.6,7.3248751]
[1743185705508,14.0065336,1885.0,1884.7,0.73248751]
[1743185705714,2.21416666,1885.4,1884.8,0.82585889]
[1743185705911,5.30402,1885.4,1885.1,0.7678]
[1743185706155,5.30425,1885.3,1885.1,0.7678]
[1743185708341,5.30394,1885.4,1885.1,6.07255]
[1743185708342,6.06,1885.2,1885.1,6.07255]
[1743185708549,6.06,1885.2,1885.1,7.21029]
[1743185708743,8.69815303,1885.6,1885.1,7.21029]
[1743185708744,6.06,1885.4,1885.3,0.7631]
[1743185709049,6.06,1885.5,1885.3,5.9121]
[1743185709247,9.12393596,1885.4,1885.3,5.149]
[1743185709640,5.30452,1885.2,1884.9,7.1893859]
[1743185709841,9.12441596,1885.3,1885.0,5.149]
[1743185710039,5.30439,1885.3,1885.0,10.45401]
[1743185710424,5.304,1885.4,1885.0,15.75889]
[1743185710636,5.304,1885.4,1885.2,0.7862]
[1743185710819,11.36391,1885.5,1885.2,0.7862]
[1743185712225,9.12409596,1885.4,1885.2,0.7862]
[1743185712430,9.12409596,1885.4,1885.0,16.5798]
[1743185712635,9.12409596,1885.4,1885.0,11.27478]